bitfinex-derivatives/quotes_BTCF0:USTF0_20251002
["timestamp","ask_amount","ask_price","bid_price","bid_amount"]
[1759412916372,1.99572839,119760.0,119750.0,0.002]
[1759412916573,2.00356839,119760.0,119750.0,0.002]
[1759412916883,2.00397476,119760.0,119750.0,0.002]
[1759412917179,2.00397476,119760.0,119750.0,1e-07]
[1759412917371,2.00431327,119760.0,119750.0,1e-07]
[1759412917570,0.1058926,119740.0,119730.0,0.01367569]
[1759412917767,1.60386583,119740.0,119730.0,6.569e-05]
[1759412917974,0.82782583,119740.0,119730.0,6.569e-05]
[1759412918173,0.8818926,119740.0,119730.0,0.03548569]
[1759412918374,1.28636025,119740.0,119730.0,0.03548569]
[1759412918680,2.04953249,119740.0,119730.0,6.569e-05]
[1759412918875,1.68873249,119740.0,119730.0,6.569e-05]
[1759412919378,2.04953249,119740.0,119730.0,6.569e-05]
[1759412919574,1.64953249,119740.0,119730.0,6.569e-05]
[1759412920281,1.65253249,119740.0,119730.0,6.569e-05]
[1759412920780,2.11897626,119740.0,119730.0,6.569e-05]
[1759412920980,2.11885626,119740.0,119730.0,6.569e-05]
[1759412921181,1.35358861,119740.0,119730.0,6.569e-05]
[1759412921381,1.76105626,119740.0,119730.0,6.569e-05]
[1759412921681,1.76101626,119740.0,119730.0,0.03548569]
[1759412921879,1.36101626,119740.0,119730.0,0.03548569]
[1759412922081,1.36101626,119740.0,119730.0,6.569e-05]
[1759412922276,0.58493626,119740.0,119730.0,6.569e-05]
[1759412922485,0.11426484,119740.0,119730.0,0.47976589]
[1759412922672,0.11426544,119740.0,119730.0,0.88423354]
[1759412922972,0.74370544,119740.0,119730.0,0.47976589]
[1759412923173,0.89006544,119740.0,119730.0,0.39628569]
[1759412923377,0.11426544,119740.0,119730.0,0.47976589]
[1759412923583,0.89002544,119740.0,119730.0,0.47976589]
[1759412923780,0.11426544,119740.0,119730.0,0.47976589]
[1759412923977,0.11467312,119740.0,119730.0,0.39628569]
[1759412924180,0.88071312,119740.0,119730.0,0.39628569]
[1759412925080,1.71117645,119740.0,119730.0,6.569e-05]
[1759412925278,2.11117645,119740.0,119730.0,6.569e-05]
[1759412925476,0.1059139,119710.0,119700.0,0.44079888]
[1759412925685,0.86806186,119710.0,119700.0,0.39622]
[1759412926086,0.09512178,119710.0,119700.0,0.39622]
[1759412926285,0.87076178,119710.0,119700.0,0.4797208]
[1759412926498,0.87082747,119710.0,119700.0,0.4797208]
[1759412926785,0.87082747,119710.0,119700.0,0.40222]
[1759412926987,0.87082747,119710.0,119700.0,0.4817209]
[1759412927175,0.87082747,119710.0,119700.0,0.03742]
[1759412927384,1.64596512,119710.0,119700.0,0.012]
[1759412927880,0.0835151,119680.0,119670.0,0.37441]
[1759412928076,0.88402071,119680.0,119670.0,0.39577]
[1759412928385,0.1003947,119680.0,119670.0,0.40736268]
[1759412928581,0.8758747,119680.0,119670.0,0.40736268]
[1759412928780,1.28034235,119680.0,119670.0,0.40736268]
[1759412928985,1.28034235,119680.0,119670.0,0.01159268]
[1759412929180,1.28034235,119680.0,119660.0,0.39577]
[1759412929181,0.1057021,119670.0,119660.0,0.39577]
[1759412929384,0.51016975,119670.0,119660.0,0.39577]
[1759412929583,1.28548975,119670.0,119660.0,0.39577]
[1759412930186,1.28826967,119670.0,119660.0,0.39577]
[1759412930587,1.28826967,119670.0,119660.0,0.40177]
[1759412930887,0.10848202,119670.0,119660.0,0.485299]
[1759412931184,0.88356202,119670.0,119660.0,0.49697928]
[1759412931392,0.86134142,119670.0,119660.0,1.30144693]
[1759412931585,0.86134142,119670.0,119660.0,0.89097928]
[1759412931782,0.8585615,119670.0,119660.0,0.89097928]
[1759412931983,0.86174722,119670.0,119660.0,0.89097928]
[1759412932485,0.86174722,119670.0,119660.0,0.879299]
[1759412932884,0.86215302,119670.0,119660.0,0.879299]
[1759412933093,0.00359152,119670.0,119660.0,1.28376665]
[1759412933487,6.569e-05,119680.0,119670.0,0.1183918]
[1759412933792,6.569e-05,119680.0,119670.0,0.88365945]
[1759412933992,6.569e-05,119680.0,119670.0,1.28365945]
[1759412934291,6.569e-05,119680.0,119670.0,0.8791918]
[1759412934494,0.8180283,119690.0,119680.0,0.1183848]
[1759412934784,0.0835053,119700.0,119690.0,0.0970179]
[1759412934989,0.0835053,119700.0,119690.0,0.4791779]
[1759412935188,0.7861853,119700.0,119690.0,0.4791779]
[1759412935989,0.7861853,119700.0,119690.0,0.4691779]
[1759412936181,0.8083653,119700.0,119690.0,0.4691779]
[1759412936582,0.8083653,119700.0,119690.0,0.39567]
[1759412936791,1.21283295,119700.0,119690.0,0.39567]
[1759412936989,1.21283295,119700.0,119690.0,0.479178]
[1759412937184,1.21283295,119700.0,119690.0,0.39567]
[1759412937488,1.21283295,119700.0,119690.0,0.38216]
[1759412937993,0.8083653,119700.0,119690.0,0.38216]
[1759412938290,1.21283295,119700.0,119690.0,0.38216]
[1759412938486,0.8083653,119700.0,119690.0,0.4791788]
[1759412938788,0.1056778,119710.0,119700.0,0.1183673]
[1759412938988,0.1056778,119710.0,119700.0,0.4791673]
[1759412939581,0.1056718,119720.0,119710.0,0.0834941]
[1759412939789,0.8799918,119720.0,119710.0,0.4791641]
[1759412940087,0.1056655,119730.0,119720.0,0.1183535]
[1759412940287,0.1056655,119730.0,119720.0,0.4791535]
[1759412940494,0.8800655,119730.0,119720.0,0.4791535]
[1759412940788,0.8578855,119730.0,119720.0,0.88362115]
[1759412940988,0.8800655,119730.0,119720.0,0.4791535]
[1759412941492,0.8800655,119730.0,119720.0,0.39567]
[1759412941786,0.1056679,119720.0,119710.0,0.3608]
[1759412942094,0.1056741,119710.0,119700.0,0.39567]
[1759412942294,0.8800741,119710.0,119700.0,0.39567]
[1759412942986,0.8800741,119710.0,119700.0,0.4791717]
[1759412943405,0.8859541,119710.0,119700.0,0.4791717]
[1759412943691,0.8637741,119710.0,119700.0,1.28363935]
[1759412943889,0.006,119710.0,119700.0,1.64443935]
[1759412944284,0.0894948,119710.0,119700.0,0.75647]
[1759412944493,0.1116748,119710.0,119700.0,0.8399718]
[1759412944687,0.1056748,119710.0,119700.0,0.8399717]
[1759412944883,0.1116748,119710.0,119700.0,0.75647]
[1759412945285,0.1116748,119710.0,119700.0,0.39567]
[1759412945489,0.51014245,119710.0,119700.0,0.39567]
[1759412945693,0.1086748,119710.0,119700.0,0.39567]
[1759412945890,0.51014245,119710.0,119700.0,0.38216]
[1759412946086,0.51314245,119710.0,119700.0,0.38216]
[1759412946282,0.51014245,119710.0,119700.0,0.3608]
[1759412946489,0.1056819,119700.0,119690.0,0.37431]
[1759412946687,1.26083164,119700.0,119690.0,0.37431]
[1759412946890,1.26083164,119700.0,119690.0,0.39567]
[1759412947686,1.26083164,119700.0,119690.0,0.03487]
[1759412948287,0.85636399,119700.0,119690.0,0.03487]
[1759412949085,1.26083164,119700.0,119690.0,0.03487]
[1759412949290,0.1056889,119690.0,119680.0,0.39567]
[1759412949590,0.1056889,119690.0,119680.0,0.4791859]
[1759412950294,0.8799689,119690.0,119680.0,0.4791859]
[1759412950490,0.8799689,119690.0,119680.0,0.39567]
[1759412950691,0.1056889,119690.0,119680.0,0.4791859]
[1759412950891,0.8799689,119690.0,119680.0,0.4791859]
[1759412951090,0.1056889,119690.0,119680.0,0.4791859]
[1759412951290,0.8799689,119690.0,119680.0,0.39567]
[1759412951484,0.51015655,119690.0,119680.0,0.39567]
[1759412951685,0.1056889,119690.0,119680.0,0.4791852]
[1759412951889,0.1056889,119690.0,119680.0,0.88365285]
[1759412952188,0.8577889,119690.0,119680.0,0.88365285]
[1759412952394,0.8577889,119690.0,119680.0,1.28365285]
[1759412952594,0.8577889,119690.0,119680.0,0.8791852]
[1759412952788,0.0835089,119690.0,119680.0,0.8791852]
[1759412952989,0.1056889,119690.0,119680.0,0.8791852]
[1759412953293,0.8577889,119690.0,119680.0,0.8791852]
[1759412954294,0.8577889,119690.0,119680.0,0.92376408]
[1759412954596,0.8799689,119690.0,119680.0,0.92376408]
[1759412955089,0.8799689,119690.0,119670.0,0.44024888]
[1759412955090,0.1056958,119680.0,119670.0,0.44024888]
[1759412955294,0.51016345,119680.0,119670.0,0.44024888]
[1759412955794,0.1056958,119680.0,119670.0,0.44024888]
[1759412955994,0.51016345,119680.0,119670.0,0.44024888]
[1759412956192,0.083522,119670.0,119660.0,0.44024888]
[1759412956384,1.28444965,119670.0,119660.0,0.44024888]
[1759412956590,1.28444965,119670.0,119660.0,0.3608]
[1759412956591,1.29444965,119670.0,119660.0,0.3608]
[1759412956894,0.105709,119660.0,119650.0,0.44035035]
[1759412957094,0.51017665,119660.0,119650.0,0.44035035]
[1759412957295,0.51801665,119660.0,119650.0,0.40548035]
[1759412957592,0.51801665,119660.0,119650.0,0.04468035]
[1759412957784,0.51017665,119660.0,119650.0,0.00010147]
[1759412958297,1.29229665,119660.0,119650.0,0.00010147]
[1759412958691,1.70060808,119660.0,119650.0,0.00010147]
[1759412958992,0.92632808,119660.0,119650.0,0.01810147]
[1759412959197,1.70064808,119660.0,119650.0,0.01810147]
[1759412959595,2.06144808,119660.0,119650.0,0.01810147]
[1759412960194,2.06144808,119660.0,119650.0,7e-08]
[1759412960395,2.08121315,119660.0,119650.0,7e-08]
[1759412961197,0.104777,119620.0,119610.0,0.44043888]
[1759412961397,0.87919856,119620.0,119610.0,0.44043888]
[1759412962399,0.08361856,119620.0,119610.0,0.39586]
[1759412962603,0.00106156,119620.0,119610.0,0.8924247]
[1759412962806,0.00206156,119620.0,119610.0,1.30989235]
[1759412963501,6.156e-05,119620.0,119610.0,1.28389235]
[1759412963896,0.08361876,119620.0,119610.0,0.39586]
[1759412964200,0.10676876,119620.0,119610.0,0.4794247]
[1759412964397,0.10676876,119620.0,119610.0,0.39586]
[1759412964602,0.08361876,119620.0,119610.0,0.4794247]
[1759412964800,0.08361876,119620.0,119610.0,1.28389235]
[1759412964995,6.156e-05,119620.0,119610.0,1.28389235]
[1759412965201,6.156e-05,119620.0,119610.0,0.8794247]
[1759412965401,6.156e-05,119620.0,119610.0,1.28389235]
[1759412965808,0.0835478,119640.0,119630.0,0.43888765]
[1759412966009,0.1066845,119660.0,119650.0,0.03442]
[1759412966202,0.1066868,119650.0,119640.0,0.39522]
[1759412967007,0.51969445,119650.0,119640.0,0.3608]
[1759412967209,0.1066938,119640.0,119630.0,0.39622]
[1759412967406,1.28568145,119640.0,119630.0,0.39622]
[1759412967910,0.8812138,119640.0,119630.0,0.39622]
[1759412968507,0.1066938,119640.0,119630.0,0.8405707]
[1759412968810,0.8580638,119640.0,119630.0,1.24403835]
[1759412969207,0.8812138,119640.0,119630.0,0.39522]
[1759412969410,0.8812138,119640.0,119630.0,0.38195]
[1759412969602,0.8812138,119640.0,119630.0,0.39522]
[1759412969808,1.28568145,119640.0,119630.0,0.39522]
[1759412970211,0.1067007,119630.0,119620.0,0.39522]
[1759412970815,0.1067076,119620.0,119610.0,0.43979888]
[1759412971115,0.1067076,119620.0,119610.0,0.39522]
[1759412971116,0.8812676,119620.0,119610.0,0.39522]
[1759412972016,0.86768466,119620.0,119610.0,0.39522]
[1759412972407,1.27215231,119620.0,119610.0,0.39522]
[1759412972602,1.27215231,119620.0,119610.0,0.38195]
[1759412972810,0.1067148,119610.0,119600.0,0.39522]
[1759412973010,0.51118245,119610.0,119600.0,0.39522]
[1759412973711,0.52087608,119610.0,119600.0,0.3608]
[1759412974420,0.1194817,119600.0,119590.0,6.01e-05]
[1759412974606,2.12926276,119600.0,119590.0,6.01e-05]
[1759412974810,0.1067357,119580.0,119570.0,0.01327]
[1759412975112,0.1067427,119570.0,119560.0,0.39522]
[1759412975318,0.8813427,119570.0,119560.0,0.03442]
[1759412975515,0.87318906,119570.0,119560.0,0.39522]
[1759412975919,1.27891035,119570.0,119560.0,0.39522]
[1759412976220,0.1067497,119560.0,119550.0,0.39522]
[1759412976522,0.1067567,119550.0,119540.0,0.03442]
[1759412976819,0.51122435,119550.0,119540.0,0.40684]
[1759412977022,0.10791033,119550.0,119540.0,0.40684]
[1759412977316,0.51237798,119550.0,119540.0,0.40684]
[1759412977516,0.51237798,119550.0,119540.0,0.38195]
[1759412977718,0.1067637,119540.0,119530.0,0.39522]
[1759412977910,0.08476733,119540.0,119530.0,0.39522]
[1759412978114,0.85948733,119540.0,119530.0,0.39522]
[1759412978316,0.00115363,119540.0,119530.0,0.4788407]
[1759412978517,0.07792977,119560.0,119550.0,0.1180267]
[1759412978518,0.4404059,119560.0,119550.0,0.1180267]
[1759412978723,0.4404059,119560.0,119550.0,0.8396267]
[1759412979112,0.4635559,119560.0,119550.0,0.8396267]
[1759412979818,0.004,119560.0,119550.0,1.59227931]
[1759412980015,0.8623997,119560.0,119550.0,1.59227931]
[1759412980321,0.08369551,119570.0,119560.0,0.03442]
[1759412980518,0.85849551,119570.0,119560.0,0.39522]
[1759412980819,0.88164551,119570.0,119560.0,0.39522]
[1759412982716,1.24129812,119570.0,119560.0,0.3618]
[1759412982922,0.12084551,119570.0,119560.0,0.39722]
[1759412983124,0.89572551,119570.0,119560.0,0.39722]
[1759412983421,0.12084551,119570.0,119560.0,0.4808197]
[1759412983623,0.87257551,119570.0,119560.0,0.4808197]
[1759412984431,0.09769551,119570.0,119560.0,0.39722]
[1759412984618,0.89572551,119570.0,119560.0,0.39722]
[1759412985123,0.09769551,119570.0,119560.0,0.4808197]
[1759412985521,0.01410001,119570.0,119560.0,0.4808197]
[1759412985826,0.01410001,119570.0,119560.0,1.23347231]
[1759412986123,0.01410001,119570.0,119560.0,0.8808197]
[1759412986418,0.01410001,119570.0,119560.0,1.23347231]
[1759412987420,0.3254189,119590.0,119580.0,0.1180057]
[1759412987614,0.14906066,119600.0,119590.0,0.01327]
[1759412987814,0.8584949,119600.0,119590.0,0.4787987]
[1759412988018,0.0835682,119610.0,119600.0,0.0966905]
[1759412988320,0.8806282,119610.0,119600.0,0.39541]
[1759412988626,0.8943382,119610.0,119600.0,0.3608]
[1759412989320,0.8806282,119610.0,119600.0,0.4658617]
[1759412989525,0.8976282,119610.0,119600.0,0.4799817]
[1759412989929,0.9066282,119610.0,119600.0,0.4799817]
[1759412990122,0.1095682,119610.0,119600.0,0.4799817]
[1759412990515,0.1095682,119610.0,119600.0,0.39641]
[1759412990719,0.1317082,119610.0,119600.0,0.39641]
[1759412991825,0.1317082,119610.0,119600.0,0.4799817]
[1759412992823,0.1317082,119610.0,119600.0,0.39641]
[1759412994226,0.1317082,119610.0,119600.0,0.4799817]
[1759412995228,0.1317082,119610.0,119600.0,0.39641]
[1759412996229,0.1317082,119610.0,119600.0,0.4799817]
[1759412996825,0.1317082,119610.0,119600.0,0.39641]
[1759412997728,0.026,119610.0,119600.0,1.23263431]
[1759412998320,0.026,119610.0,119600.0,2.00739431]
[1759412998532,0.026,119610.0,119600.0,2.05197319]
[1759412998826,0.0835558,119630.0,119620.0,0.1181677]
[1759412999032,0.0835558,119630.0,119620.0,0.4789677]
[1759412999327,0.1056958,119630.0,119620.0,0.8397677]
[1759412999525,0.63643436,119640.0,119630.0,0.03461]
[1759412999725,0.63643436,119640.0,119630.0,0.4789607]
[1759412999927,0.1056882,119640.0,119630.0,0.4789607]
[1759413000127,0.8804482,119640.0,119630.0,0.4789607]
[1759413000327,0.8804482,119640.0,119630.0,0.39541]
[1759413000732,0.1056907,119630.0,119620.0,0.39541]
[1759413002038,0.8582307,119630.0,119620.0,0.4789677]
[1759413002232,0.0835507,119630.0,119620.0,0.4789677]
[1759413002725,0.0835507,119630.0,119620.0,0.4999677]
[1759413003331,0.1056907,119630.0,119620.0,0.41641]
[1759413003923,0.1056907,119630.0,119620.0,0.4999677]
[1759413005230,0.1056907,119630.0,119620.0,0.41641]
[1759413006237,0.87168331,119630.0,119620.0,0.021]
[1759413007232,1.23248331,119630.0,119620.0,0.021]
[1759413007637,0.1194147,119610.0,119600.0,0.38229]
[1759413007938,0.8939747,119610.0,119600.0,0.38229]
[1759413008836,0.8802647,119610.0,119600.0,0.4789817]
[1759413009040,0.0835647,119610.0,119600.0,0.83163431]
[1759413009226,0.0835629,119620.0,119610.0,0.1181712]
[1759413009435,0.4580538,119640.0,119620.0,0.1181631]
[1759413009436,0.0835537,119630.0,119620.0,0.1181631]
[1759413009634,0.0835537,119630.0,119620.0,0.4789631]
[1759413009835,0.8581137,119630.0,119620.0,0.4789631]
[1759413010236,0.8581137,119630.0,119620.0,0.39541]
[1759413010445,0.8802537,119630.0,119620.0,0.39541]
[1759413010833,1.23290631,119630.0,119620.0,0.02149]
[1759413011038,0.1056978,119620.0,119610.0,0.43998888]
[1759413012039,0.1056978,119620.0,119610.0,0.39541]
[1759413012245,0.1056978,119620.0,119610.0,0.43998888]
[1759413012645,0.8862178,119620.0,119610.0,0.43998888]
[1759413012946,0.006,119620.0,119610.0,1.23162741]
[1759413013145,0.006,119620.0,119610.0,1.27620629]
[1759413013341,0.083551,119630.0,119620.0,0.0835518]
[1759413013546,0.8802072,119640.0,119630.0,0.1181608]
[1759413013744,0.8802072,119640.0,119630.0,0.39541]
[1759413014653,0.8802072,119640.0,119630.0,0.4789608]
[1759413015050,0.8852072,119640.0,119630.0,0.4789608]
[1759413015348,0.8852072,119640.0,119630.0,0.52364293]
[1759413015748,0.8801672,119640.0,119630.0,0.52364293]
[1759413015947,0.8851672,119640.0,119630.0,0.52364293]
[1759413016346,0.8851672,119640.0,119630.0,0.07929213]
[1759413016542,0.1056908,119630.0,119620.0,0.41860213]
[1759413016743,0.1056908,119630.0,119620.0,0.52364993]
[1759413017355,0.1056908,119630.0,119620.0,0.4789678]
[1759413018147,0.47540341,119630.0,119620.0,0.04476923]
[1759413018352,0.8835508,119630.0,119620.0,0.04476923]
[1759413018551,1.23620341,119630.0,119620.0,0.04476923]
[1759413018748,0.1178177,119620.0,119610.0,0.04476923]
[1759413019056,1.24487031,119620.0,119610.0,0.04476923]
[1759413019555,1.60567031,119620.0,119610.0,0.04476923]
[1759413019856,2.00567031,119620.0,119610.0,0.04476923]
[1759413020741,2.00567031,119620.0,119610.0,0.04576923]
[1759413021345,2.01067031,119620.0,119610.0,0.04576923]
[1759413021750,2.00567031,119620.0,119610.0,0.04476923]
[1759413021956,2.01067031,119620.0,119610.0,0.04476923]
[1759413022155,0.1047647,119610.0,119600.0,0.42749923]
[1759413022544,0.1047647,119610.0,119600.0,0.51107093]
[1759413022749,0.1047647,119610.0,119600.0,0.52378093]
[1759413022950,0.8791647,119610.0,119600.0,0.52378093]
[1759413023360,0.8791647,119610.0,119600.0,0.42749923]
[1759413023658,0.8918747,119610.0,119600.0,0.42749923]
[1759413023853,0.8938747,119610.0,119600.0,0.42749923]
[1759413024246,0.8918747,119610.0,119600.0,0.42749923]
[1759413024451,0.96048467,119610.0,119600.0,0.42749923]
[1759413024657,0.17337467,119610.0,119600.0,0.51107093]
[1759413024858,0.17137467,119610.0,119600.0,0.52392093]
[1759413025060,0.94773467,119610.0,119600.0,0.52392093]
[1759413025756,0.0232,119610.0,119600.0,0.52392093]
[1759413025958,0.44892101,119620.0,119610.0,0.02102]
[1759413026261,0.1177447,119610.0,119600.0,0.42759558]
[1759413026558,0.47039731,119610.0,119600.0,0.42759558]
[1759413026762,0.47239731,119610.0,119600.0,0.06579558]
[1759413026963,0.53863299,119610.0,119600.0,0.06579558]
[1759413027165,0.53863299,119610.0,119600.0,0.42659558]
[1759413027363,0.94563038,119610.0,119600.0,0.52301728]
[1759413027549,0.95263038,119610.0,119600.0,0.52301728]
[1759413027752,0.95263038,119610.0,119600.0,0.43944558]
[1759413028156,0.17827038,119610.0,119600.0,0.52301728]
[1759413028357,0.95063038,119610.0,119600.0,0.52301728]
[1759413028757,0.17827038,119610.0,119600.0,0.52301728]
[1759413028960,0.95263038,119610.0,119600.0,0.52301728]
[1759413029166,0.94763038,119610.0,119600.0,0.52301728]
[1759413029362,0.94763038,119610.0,119600.0,0.43944558]
[1759413029662,1.31299299,119610.0,119600.0,0.04477558]
[1759413029855,0.1177517,119600.0,119590.0,0.40557558]
[1759413030055,0.47040431,119600.0,119590.0,0.40557558]
[1759413030451,0.47040431,119600.0,119590.0,0.04477558]
[1759413030951,0.1050417,119600.0,119590.0,0.07864558]
[1759413031157,0.0835717,119600.0,119590.0,0.52402418]
[1759413031361,0.0835717,119600.0,119590.0,0.52400586]
[1759413031553,0.0835603,119620.0,119610.0,0.1174296]
[1759413031761,0.7718003,119620.0,119610.0,0.4782296]
[1759413031959,0.7932703,119620.0,119610.0,0.43941285]
[1759413032164,0.7932703,119620.0,119610.0,0.39467]
[1759413032366,1.14592291,119620.0,119610.0,0.39467]
[1759413032664,0.8059803,119620.0,119610.0,0.38182]
[1759413033068,0.8920603,119620.0,119610.0,0.42656285]
[1759413033254,0.8793503,119620.0,119610.0,0.43941285]
[1759413033456,0.1050303,119620.0,119610.0,0.43941285]
[1759413033653,0.1050303,119620.0,119610.0,0.52297755]
[1759413033862,0.8578803,119620.0,119610.0,0.52297755]
[1759413034070,0.8678803,119620.0,119610.0,0.8390347]
[1759413034462,0.01,119620.0,119610.0,1.59168731]
[1759413034964,0.0935577,119620.0,119610.0,1.65126315]
[1759413035266,0.0935577,119620.0,119610.0,1.29861054]
[1759413035673,0.0935577,119620.0,119610.0,1.2390347]
[1759413035966,0.0935577,119620.0,119610.0,1.65126315]
[1759413036166,0.01,119620.0,119610.0,1.65126315]
[1759413036468,0.0935577,119620.0,119610.0,1.65126315]
[1759413036662,0.0935577,119620.0,119610.0,1.29861054]
[1759413038773,0.0935577,119620.0,119610.0,0.89861054]
[1759413038958,0.1150277,119620.0,119610.0,0.8390347]
[1759413039160,0.1150277,119620.0,119610.0,0.89861054]
[1759413039371,0.0935577,119620.0,119610.0,0.89861054]
[1759413039869,0.1150277,119620.0,119610.0,0.89861054]
[1759413040276,0.1150277,119620.0,119610.0,0.75547]
[1759413040468,0.1150277,119620.0,119610.0,0.8390347]
[1759413040772,0.1050347,119610.0,119600.0,0.45424584]
[1759413040971,1.29713705,119610.0,119600.0,0.08059584]
[1759413041164,0.1177517,119600.0,119590.0,0.39467]
[1759413041472,0.1177517,119600.0,119590.0,0.38182]
[1759413041672,0.52298405,119600.0,119590.0,0.38182]
[1759413041874,0.1177517,119600.0,119590.0,0.38182]
[1759413042769,0.1177517,119600.0,119590.0,0.3608]
[1759413043373,0.1177517,119600.0,119580.0,0.53769084]
[1759413043374,0.1050486,119590.0,119580.0,0.53769084]
[1759413043572,0.1050486,119590.0,119580.0,0.45410584]
[1759413043773,0.0835786,119590.0,119580.0,0.53769144]
[1759413044070,0.0835786,119590.0,119580.0,0.4781156]
[1759413044378,0.1050486,119590.0,119580.0,0.4781156]
[1759413044670,0.1050486,119590.0,119580.0,0.4791156]
[1759413044870,0.1050486,119590.0,119580.0,0.88434795]
[1759413045273,0.1050486,119590.0,119580.0,0.94292379]
[1759413045471,0.1050486,119590.0,119580.0,0.94392379]
[1759413045774,0.1050486,119590.0,119580.0,0.94292379]
[1759413045973,0.1050486,119590.0,119580.0,0.39553]
[1759413046278,0.92299095,119590.0,119580.0,0.001]
[1759413046469,1.28379095,119590.0,119580.0,0.001]
[1759413046668,2.05791095,119590.0,119580.0,0.02102]
[1759413046863,2.05791095,119590.0,119580.0,0.02202]
[1759413047378,1.2918786,119590.0,119580.0,0.38182]
[1759413047673,0.1100486,119590.0,119580.0,0.39467]
[1759413047878,0.0885786,119590.0,119580.0,0.88348795]
[1759413048076,0.0885786,119590.0,119580.0,1.28348795]
[1759413048376,0.005,119590.0,119580.0,1.34306379]
[1759413048576,0.8576942,119600.0,119590.0,0.1195185]
[1759413048765,0.0835742,119600.0,119590.0,0.54003928]
[1759413049676,0.1046542,119600.0,119590.0,0.45646078]
[1759413050178,0.1046542,119600.0,119590.0,0.46046078]
[1759413050483,0.1046542,119600.0,119590.0,0.54403938]
[1759413050779,0.1046542,119600.0,119590.0,0.46046078]
[1759413051174,0.1046542,119600.0,119590.0,0.40174]
[1759413051376,0.1046542,119600.0,119590.0,0.4853186]
[1759413052374,0.1046542,119600.0,119590.0,0.4813186]
[1759413052572,0.8576942,119600.0,119590.0,0.88655095]
[1759413052772,0.8576942,119600.0,119590.0,0.94627173]
[1759413052970,0.8576942,119600.0,119590.0,0.88655095]
[1759413053380,0.0835742,119600.0,119590.0,0.88655095]
[1759413053573,0.8576942,119600.0,119590.0,0.88955095]
[1759413053874,0.8576942,119600.0,119590.0,0.89355095]
[1759413054182,0.85769,119610.0,119600.0,0.1195117]
[1759413054377,0.85769,119610.0,119600.0,0.88554405]
[1759413054573,0.85769,119610.0,119600.0,0.54003248]
[1759413054778,0.87877,119610.0,119600.0,0.54003248]
[1759413055271,0.85769,119610.0,119600.0,0.94526483]
[1759413055680,0.87877,119610.0,119600.0,0.54003248]
[1759413056076,0.87877,119610.0,119600.0,0.4803117]
[1759413056381,0.87877,119610.0,119600.0,0.4813117]
[1759413056582,0.87877,119610.0,119600.0,0.4823117]
[1759413057380,0.87877,119610.0,119600.0,0.39874]
[1759413058184,0.87877,119610.0,119600.0,0.4823116]
[1759413058382,0.87877,119610.0,119600.0,0.39874]
[1759413059079,0.89171,119610.0,119600.0,0.39874]
[1759413059382,0.85761,119610.0,119600.0,0.88754395]
[1759413059576,0.02108,119630.0,119620.0,0.1194977]
[1759413059777,0.1046307,119630.0,119620.0,1.16277235]
[1759413059972,0.8786307,119630.0,119620.0,0.75754]
[1759413060172,0.1046307,119630.0,119620.0,0.8410977]
[1759413060374,0.02943103,119640.0,119630.0,0.1194907]
[1759413060578,0.17205962,119650.0,119640.0,0.03594]
[1759413060885,0.1046136,119660.0,119650.0,0.03594]
[1759413061082,0.1046136,119660.0,119650.0,0.88550905]
[1759413061083,0.79508,119660.0,119650.0,0.88550905]
[1759413061474,0.1045987,119680.0,119670.0,0.03594]
[1759413061778,0.11894842,119700.0,119670.0,1.64629505]
[1759413061986,0.79504,119690.0,119680.0,0.39674]
[1759413062275,0.89874718,119690.0,119680.0,0.39674]
[1759413062480,0.89874718,119690.0,119680.0,0.4802558]
[1759413063481,0.8785488,119690.0,119680.0,0.4802558]
[1759413063876,0.8785488,119690.0,119680.0,0.39674]
[1759413064076,0.8835488,119690.0,119680.0,0.39674]
[1759413064277,0.8885488,119690.0,119680.0,0.39674]
[1759413064781,0.8885488,119690.0,119680.0,0.4802559]
[1759413064984,0.80504,119690.0,119680.0,0.4802559]
[1759413065775,0.01,119690.0,119680.0,0.88548825]
[1759413065986,0.01,119690.0,119680.0,0.8802559]
[1759413066287,0.01,119690.0,119680.0,1.28548825]
[1759413068181,0.02108,119720.0,119710.0,0.1194305]
[1759413068388,0.55248,119720.0,119710.0,1.24626285]
[1759413069279,0.094488,119720.0,119710.0,1.24626285]
[1759413070187,0.085488,119720.0,119710.0,1.24626285]
[1759413070584,0.002,119720.0,119710.0,1.24626285]
[1759413070779,0.0854879,119720.0,119710.0,1.16277235]
[1759413070985,0.1065679,119720.0,119710.0,1.16277235]
[1759413071188,0.1065679,119720.0,119710.0,1.24626725]
[1759413071778,0.0854879,119720.0,119710.0,1.16277235]
[1759413072382,0.02108,119750.0,119740.0,0.01288]
[1759413072583,0.01294,119770.0,119750.0,0.1194033]
[1759413072781,0.1045333,119770.0,119760.0,0.39674]
[1759413072982,0.0834533,119770.0,119760.0,0.80197235]
[1759413073692,0.1045333,119770.0,119760.0,0.39674]
[1759413073890,0.1045333,119770.0,119760.0,0.80197235]
[1759413074189,0.1095333,119770.0,119760.0,0.80197235]
[1759413074392,0.1045333,119770.0,119760.0,0.39674]
[1759413074690,0.1045333,119770.0,119760.0,0.39974]
[1759413075391,0.1045333,119770.0,119760.0,0.80497235]
[1759413075589,0.0834533,119770.0,119760.0,0.80497235]
[1759413075885,0.0854533,119770.0,119760.0,0.80197235]
[1759413076384,0.1065333,119770.0,119760.0,0.39674]
[1759413079493,0.52528565,119770.0,119760.0,0.02306]
[1759413079685,0.1200533,119770.0,119760.0,0.02306]
[1759413080087,0.1065333,119770.0,119760.0,0.39655]
[1759413080589,0.1200533,119770.0,119760.0,0.39655]
[1759413080892,0.1065333,119770.0,119760.0,0.39655]
[1759413082001,0.79722948,119770.0,119760.0,0.39655]
[1759413083993,0.81047948,119770.0,119760.0,0.39655]
[1759413084191,0.81047948,119770.0,119750.0,0.3608]
[1759413084192,0.01325,119760.0,119750.0,0.3608]
[1759413084397,0.43956235,119760.0,119750.0,0.3608]
[1759413084881,0.44071183,119760.0,119750.0,0.3608]
[1759413085593,0.03433,119750.0,119740.0,0.3608]
[1759413085791,1.21244235,119750.0,119740.0,0.3608]
[1759413085992,1.21359183,119750.0,119740.0,0.3608]
[1759413086388,0.79510948,119750.0,119740.0,0.39758]
[1759413086591,0.02222948,119750.0,119740.0,0.39758]
[1759413086794,0.00114948,119750.0,119740.0,0.80281235]
[1759413087089,0.53506948,119750.0,119740.0,0.39758]
[1759413087290,0.97463183,119750.0,119740.0,0.39318]
[1759413087489,0.97463183,119750.0,119740.0,0.38036]
[1759413087689,0.56939948,119750.0,119740.0,0.38136]
[1759413088188,0.56980375,119750.0,119740.0,0.38136]
[1759413088691,0.57020802,119750.0,119740.0,0.38136]
[1759413089599,1.37544037,119750.0,119740.0,0.3584]
[1759413089989,1.61436037,119750.0,119740.0,0.002]
[1759413090186,1.61470131,119750.0,119740.0,0.002]
[1759413090397,0.84186131,119750.0,119740.0,0.002]